[Event "*** SCC Grand Prix: Titled Tuesday Blitz"]
[Site "Chess.com"]
[Date "2020.07.21"]
[Round "6"]
[White "Schack-Hugo"]
[Black "NiranjanNavalgund"]
[Result "1-0"]
[WhiteElo "2199"]
[BlackElo "2441"]
[TimeControl "180+1"]
[EndTime "11:07:28 PDT"]
[Termination "Schack-Hugo won by checkmate"]

1. c3 {[%clk 0:03:00.9]} 1... e5 {[%clk 0:02:59.5]} 2. d4 {[%clk 0:03:01.8]}
2... d6 {[%clk 0:02:59]} 3. g3 {[%clk 0:02:55.3]} 3... h5 {[%clk 0:02:58]} 4. h4
{[%clk 0:02:52.9]} 4... Nh6 {[%clk 0:02:57.6]} 5. Bg2 {[%clk 0:02:51.5]} 5... c6
{[%clk 0:02:57.2]} 6. Nf3 {[%clk 0:02:50.8]} 6... e4 {[%clk 0:02:57.2]} 7. Ng5
{[%clk 0:02:40.5]} 7... d5 {[%clk 0:02:48.6]} 8. O-O {[%clk 0:02:33.1]} 8... Be7
{[%clk 0:02:48.5]} 9. Nh3 {[%clk 0:02:17]} 9... Bg4 {[%clk 0:02:46.5]} 10. Nf4
{[%clk 0:02:03.3]} 10... Bxh4 {[%clk 0:02:41.7]} 11. gxh4 {[%clk 0:01:53.5]}
11... Qxh4 {[%clk 0:02:42.6]} 12. f3 {[%clk 0:01:45.7]} 12... Bf5 {[%clk
0:02:41.4]} 13. Qe1 {[%clk 0:01:31.1]} 13... Qe7 {[%clk 0:02:34.9]} 14. fxe4
{[%clk 0:01:24.5]} 14... dxe4 {[%clk 0:02:34.3]} 15. Nxh5 {[%clk 0:01:16.4]}
15... Bg6 {[%clk 0:02:20.1]} 16. Nxg7+ {[%clk 0:01:06.3]} 16... Kf8 {[%clk
0:02:20.1]} 17. Bxh6 {[%clk 0:00:54.7]} 17... Rxh6 {[%clk 0:02:21]} 18. Nf5
{[%clk 0:00:53.7]} 18... Qg5 {[%clk 0:02:19.5]} 19. Nxh6 {[%clk 0:00:50]} 19...
Qxh6 {[%clk 0:02:20.4]} 20. Nd2 {[%clk 0:00:43.2]} 20... Nd7 {[%clk 0:02:20.1]}
21. e3 {[%clk 0:00:38]} 21... Re8 {[%clk 0:02:19]} 22. Qf2 {[%clk 0:00:38.1]}
22... Kg7 {[%clk 0:02:16.8]} 23. Qf4 {[%clk 0:00:37.9]} 23... Qh5 {[%clk
0:02:16]} 24. Rae1 {[%clk 0:00:36.1]} 24... Rh8 {[%clk 0:02:15.3]} 25. Kf2
{[%clk 0:00:35.2]} 25... Qb5 {[%clk 0:02:13.9]} 26. Rh1 {[%clk 0:00:21.7]} 26...
Qd3 {[%clk 0:02:05.6]} 27. Rxh8 {[%clk 0:00:19.7]} 27... Kxh8 {[%clk 0:02:06.5]}
28. Re2 {[%clk 0:00:18.6]} 28... Kg8 {[%clk 0:02:06.9]} 29. Qc7 {[%clk
0:00:15.8]} 29... Nf8 {[%clk 0:02:05.9]} 30. Qg3 {[%clk 0:00:14.6]} 30... Qb5
{[%clk 0:02:02.2]} 31. Bxe4 {[%clk 0:00:14.4]} 31... Qxb2 {[%clk 0:02:01.3]} 32.
Bxg6 {[%clk 0:00:14.3]} 32... Nxg6 {[%clk 0:02:02.2]} 33. Ne4 {[%clk 0:00:14.2]}
33... Qb1 {[%clk 0:02:00]} 34. Ng5 {[%clk 0:00:12]} 34... Qf5+ {[%clk 0:01:59]}
35. Nf3 {[%clk 0:00:11.9]} 35... Qd3 {[%clk 0:01:57.6]} 36. e4 {[%clk 0:00:12]}
36... Qxc3 {[%clk 0:01:57.9]} 37. Re3 {[%clk 0:00:12.1]} 37... Qb2+ {[%clk
0:01:57.7]} 38. Re2 {[%clk 0:00:12.4]} 38... Qc3 {[%clk 0:01:57.5]} 39. Kg2
{[%clk 0:00:11.8]} 39... Qc1 {[%clk 0:01:56.6]} 40. Ne5 {[%clk 0:00:10.6]} 40...
Qd1 {[%clk 0:01:55.9]} 41. Rf2 {[%clk 0:00:10.1]} 41... Qxd4 {[%clk 0:01:46.3]}
42. Nxg6 {[%clk 0:00:11]} 42... Qxe4+ {[%clk 0:01:04]} 43. Kh2 {[%clk
0:00:08.3]} 43... fxg6 {[%clk 0:00:56.7]} 44. Qb8+ {[%clk 0:00:08]} 44... Kh7
{[%clk 0:00:57.1]} 45. Rf7+ {[%clk 0:00:07.1]} 45... Kh6 {[%clk 0:00:57.6]} 46.
Qf8+ {[%clk 0:00:05.8]} 46... Kg5 {[%clk 0:00:57.3]} 47. Qe7+ {[%clk 0:00:05.9]}
47... Qxe7 {[%clk 0:00:57]} 48. Rxe7 {[%clk 0:00:06.8]} 48... b5 {[%clk
0:00:57.9]} 49. Rxa7 {[%clk 0:00:07.2]} 49... Kf4 {[%clk 0:00:57.4]} 50. Rc7
{[%clk 0:00:07.2]} 50... c5 {[%clk 0:00:56.5]} 51. Rxc5 {[%clk 0:00:07.1]} 51...
b4 {[%clk 0:00:56.8]} 52. Rc4+ {[%clk 0:00:07.4]} 52... Ke5 {[%clk 0:00:57.3]}
53. Rxb4 {[%clk 0:00:08.3]} 53... Kd5 {[%clk 0:00:57.2]} 54. Rb3 {[%clk
0:00:09.2]} 54... Kc4 {[%clk 0:00:57.6]} 55. Kg2 {[%clk 0:00:10.1]} 55... Kd4
{[%clk 0:00:58.1]} 56. Rg3 {[%clk 0:00:11]} 56... Kc4 {[%clk 0:00:57.4]} 57.
Rxg6 {[%clk 0:00:11.9]} 57... Kb4 {[%clk 0:00:58]} 58. Rg3 {[%clk 0:00:12.2]}
58... Ka4 {[%clk 0:00:58.4]} 59. Rb3 {[%clk 0:00:13.1]} 59... Ka5 {[%clk
0:00:58.5]} 60. Kf3 {[%clk 0:00:14]} 60... Ka4 {[%clk 0:00:59.4]} 61. Ke4 {[%clk
0:00:14.9]} 61... Ka5 {[%clk 0:01:00.3]} 62. Kd5 {[%clk 0:00:15.7]} 62... Ka4
{[%clk 0:01:01.2]} 63. Rb8 {[%clk 0:00:15.7]} 63... Ka5 {[%clk 0:01:02.1]} 64.
Kc4 {[%clk 0:00:15.9]} 64... Ka6 {[%clk 0:01:02.2]} 65. Rb3 {[%clk 0:00:16.8]}
65... Ka7 {[%clk 0:01:02.9]} 66. Rb2 {[%clk 0:00:17.1]} 66... Ka6 {[%clk
0:01:03.8]} 67. Kc5 {[%clk 0:00:17.7]} 67... Ka5 {[%clk 0:01:04.4]} 68. Rb3
{[%clk 0:00:17.9]} 68... Ka4 {[%clk 0:01:05]} 69. Rb4+ {[%clk 0:00:18.1]} 69...
Ka3 {[%clk 0:01:05.1]} 70. Rb8 {[%clk 0:00:18]} 70... Ka4 {[%clk 0:01:04.3]} 71.
Rb7 {[%clk 0:00:17.1]} 71... Ka3 {[%clk 0:01:04.4]} 72. Kc4 {[%clk 0:00:17.4]}
72... Ka4 {[%clk 0:01:04.1]} 73. Ra7# {[%clk 0:00:17.1]} 1-0

[Event "*** SCC Grand Prix: Titled Tuesday Blitz"]
[Site "Chess.com"]
[Date "2020.07.21"]
[Round "6"]
[White "Kolle05"]
[Black "natelleka"]
[Result "0-1"]
[WhiteElo "2349"]
[BlackElo "2157"]
[TimeControl "180+1"]
[EndTime "11:07:30 PDT"]
[Termination "natelleka won on time"]

1. e4 {[%clk 0:03:00.9]} 1... e5 {[%clk 0:02:59.5]} 2. Nf3 {[%clk 0:03:01.2]}
2... Nf6 {[%clk 0:02:59.6]} 3. Nc3 {[%clk 0:03:00.1]} 3... Nc6 {[%clk
0:02:59.1]} 4. d4 {[%clk 0:03:00.7]} 4... exd4 {[%clk 0:02:58.8]} 5. Nxd4 {[%clk
0:03:01.6]} 5... Bb4 {[%clk 0:02:58.6]} 6. Nxc6 {[%clk 0:03:01]} 6... bxc6
{[%clk 0:02:58.9]} 7. Bd3 {[%clk 0:03:01.6]} 7... d5 {[%clk 0:02:59.4]} 8. exd5
{[%clk 0:03:02.1]} 8... Qe7+ {[%clk 0:02:59.3]} 9. Qe2 {[%clk 0:03:00.4]} 9...
Qxe2+ {[%clk 0:02:57.9]} 10. Kxe2 {[%clk 0:03:01.3]} 10... Nxd5 {[%clk
0:02:57.7]} 11. Ne4 {[%clk 0:02:53.3]} 11... f5 {[%clk 0:02:56.9]} 12. Ng3
{[%clk 0:02:46.3]} 12... O-O {[%clk 0:02:52.9]} 13. Rd1 {[%clk 0:02:14.8]} 13...
Bd6 {[%clk 0:02:43.3]} 14. Kf1 {[%clk 0:02:10.8]} 14... Rb8 {[%clk 0:02:41.5]}
15. c3 {[%clk 0:01:59.4]} 15... Be5 {[%clk 0:02:36.3]} 16. Re1 {[%clk
0:01:37.2]} 16... Bd6 {[%clk 0:02:22.6]} 17. Bc4 {[%clk 0:01:27.4]} 17... g6
{[%clk 0:02:14.8]} 18. Bh6 {[%clk 0:01:26.2]} 18... Rd8 {[%clk 0:02:06.9]} 19.
Rab1 {[%clk 0:01:24.2]} 19... Kf7 {[%clk 0:01:45.9]} 20. Ne2 {[%clk 0:01:10.5]}
20... Be6 {[%clk 0:01:37.1]} 21. Kg1 {[%clk 0:01:05]} 21... c5 {[%clk
0:01:13.4]} 22. Bb3 {[%clk 0:00:55.9]} 22... Re8 {[%clk 0:01:05.5]} 23. Rbd1
{[%clk 0:00:55]} 23... Nb6 {[%clk 0:01:02]} 24. Bxe6+ {[%clk 0:00:53.5]} 24...
Rxe6 {[%clk 0:01:02.9]} 25. Nf4 {[%clk 0:00:34.6]} 25... Rxe1+ {[%clk
0:01:01.8]} 26. Rxe1 {[%clk 0:00:35.5]} 26... Na4 {[%clk 0:00:56.1]} 27. b3
{[%clk 0:00:25.9]} 27... Nxc3 {[%clk 0:00:54.1]} 28. Nd3 {[%clk 0:00:25]} 28...
Nxa2 {[%clk 0:00:45.1]} 29. Ra1 {[%clk 0:00:24.1]} 29... Nb4 {[%clk 0:00:43.5]}
30. Nb2 {[%clk 0:00:15]} 30... Nc6 {[%clk 0:00:39.2]} 31. g3 {[%clk 0:00:13.5]}
31... Rxb3 {[%clk 0:00:38.4]} 32. Nc4 {[%clk 0:00:14.4]} 32... Rb4 {[%clk
0:00:30.3]} 33. Ne3 {[%clk 0:00:13.6]} 33... a5 {[%clk 0:00:21.1]} 34. Nd5
{[%clk 0:00:07.6]} 34... Rb2 {[%clk 0:00:20.4]} 35. Be3 {[%clk 0:00:05.2]} 35...
Rc2 {[%clk 0:00:18]} 36. Rb1 {[%clk 0:00:04.4]} 36... Nd4 {[%clk 0:00:17.5]} 37.
Rb7 {[%clk 0:00:04]} 37... Ke6 {[%clk 0:00:16.6]} 38. Nxc7+ {[%clk 0:00:04]}
38... Bxc7 {[%clk 0:00:16.8]} 39. Rxc7 {[%clk 0:00:04.9]} 39... Kd5 {[%clk
0:00:16.2]} 40. Rxh7 {[%clk 0:00:04.5]} 40... Ke4 {[%clk 0:00:12.9]} 41. Kg2
{[%clk 0:00:03]} 41... a4 {[%clk 0:00:10.4]} 42. Ra7 {[%clk 0:00:02.7]} 42...
Ra2 {[%clk 0:00:10]} 43. Ra5 {[%clk 0:00:02.4]} 43... Nb3 {[%clk 0:00:09]} 44.
Bxc5 {[%clk 0:00:01.6]} 44... Nxa5 {[%clk 0:00:08.7]} 0-1

[Event "*** SCC Grand Prix: Titled Tuesday Blitz"]
[Site "Chess.com"]
[Date "2020.07.21"]
[Round "6"]
[White "Josip_buje"]
[Black "mariangie523"]
[Result "1-0"]
[WhiteElo "2277"]
[BlackElo "2021"]
[TimeControl "180+1"]
[EndTime "11:07:31 PDT"]
[Termination "Josip_buje won by checkmate"]

1. d4 {[%clk 0:03:00.9]} 1... Nf6 {[%clk 0:02:58.7]} 2. Nf3 {[%clk 0:03:01.1]}
2... g6 {[%clk 0:02:57.9]} 3. Bg5 {[%clk 0:03:01.6]} 3... Bg7 {[%clk 0:02:57]}
4. e3 {[%clk 0:03:02.1]} 4... d6 {[%clk 0:02:56.4]} 5. Nbd2 {[%clk 0:03:02.6]}
5... O-O {[%clk 0:02:56.7]} 6. Bc4 {[%clk 0:03:02.9]} 6... Nbd7 {[%clk
0:02:56.7]} 7. O-O {[%clk 0:03:02.9]} 7... c5 {[%clk 0:02:56.9]} 8. c3 {[%clk
0:03:02.5]} 8... a6 {[%clk 0:02:56.1]} 9. a4 {[%clk 0:03:02.4]} 9... cxd4 {[%clk
0:02:53.7]} 10. exd4 {[%clk 0:03:02.1]} 10... Re8 {[%clk 0:02:51.6]} 11. Re1
{[%clk 0:03:02]} 11... Nb6 {[%clk 0:02:47.8]} 12. Bb3 {[%clk 0:02:59.6]} 12...
Bg4 {[%clk 0:02:47.7]} 13. h3 {[%clk 0:02:58.8]} 13... Bxf3 {[%clk 0:02:47.8]}
14. Qxf3 {[%clk 0:02:57.3]} 14... Qc7 {[%clk 0:02:43.8]} 15. Ne4 {[%clk
0:02:50.5]} 15... Nbd5 {[%clk 0:02:01.6]} 16. Ng3 {[%clk 0:02:49.1]} 16... h6
{[%clk 0:01:57.3]} 17. Bd2 {[%clk 0:02:40.3]} 17... e6 {[%clk 0:01:49]} 18. h4
{[%clk 0:02:40]} 18... h5 {[%clk 0:01:45.2]} 19. Bg5 {[%clk 0:02:36.5]} 19...
Nd7 {[%clk 0:01:44.9]} 20. Bxd5 {[%clk 0:02:34.9]} 20... exd5 {[%clk 0:01:43.9]}
21. Qxd5 {[%clk 0:02:34.6]} 21... Nb6 {[%clk 0:01:43.1]} 22. Qb3 {[%clk
0:02:24.2]} 22... d5 {[%clk 0:01:38.8]} 23. Ne2 {[%clk 0:02:14.8]} 23... Nc4
{[%clk 0:01:33.8]} 24. Bf4 {[%clk 0:02:11.5]} 24... Qd7 {[%clk 0:01:31]} 25. Bg3
{[%clk 0:02:03.6]} 25... Re6 {[%clk 0:01:28.6]} 26. Nf4 {[%clk 0:02:02.8]} 26...
Rb6 {[%clk 0:01:25.8]} 27. Qd1 {[%clk 0:01:52.4]} 27... Nxb2 {[%clk 0:01:25.4]}
28. Qf3 {[%clk 0:01:51.8]} 28... Rd8 {[%clk 0:01:17]} 29. a5 {[%clk 0:01:45.7]}
29... Rb3 {[%clk 0:01:12.9]} 30. Rab1 {[%clk 0:01:41.1]} 30... Rb5 {[%clk
0:01:08.1]} 31. Qe2 {[%clk 0:01:07.8]} 31... Nc4 {[%clk 0:00:56.6]} 32. Rxb5
{[%clk 0:01:06.5]} 32... axb5 {[%clk 0:00:52.8]} 33. Nd3 {[%clk 0:01:01]} 33...
Nxa5 {[%clk 0:00:47]} 34. Nc5 {[%clk 0:01:01.1]} 34... Qc6 {[%clk 0:00:43.2]}
35. Qe7 {[%clk 0:01:00.5]} 35... Ra8 {[%clk 0:00:39.9]} 36. Ra1 {[%clk
0:00:45.8]} 36... Bf8 {[%clk 0:00:32.8]} 37. Qe3 {[%clk 0:00:38.1]} 37... Nc4
{[%clk 0:00:25.4]} 38. Qe1 {[%clk 0:00:33]} 38... Re8 {[%clk 0:00:09.1]} 39. Qc1
{[%clk 0:00:31.5]} 39... Bxc5 {[%clk 0:00:05.8]} 40. dxc5 {[%clk 0:00:32.4]}
40... Qxc5 {[%clk 0:00:03.8]} 41. Qh6 {[%clk 0:00:30.1]} 41... Qf8 {[%clk
0:00:02.5]} 42. Qg5 {[%clk 0:00:29.1]} 42... Qe7 {[%clk 0:00:01.7]} 43. Qxd5
{[%clk 0:00:28.5]} 43... Qe6 {[%clk 0:00:01.4]} 44. Qxb5 {[%clk 0:00:27.9]}
44... Nd2 {[%clk 0:00:02.2]} 45. Qxb7 {[%clk 0:00:26.7]} 45... Re7 {[%clk
0:00:02.8]} 46. Ra8+ {[%clk 0:00:24.1]} 46... Kg7 {[%clk 0:00:01.8]} 47. Qb8
{[%clk 0:00:22.3]} 47... Qe1+ {[%clk 0:00:02.7]} 48. Kh2 {[%clk 0:00:21.7]}
48... Nf1+ {[%clk 0:00:03.2]} 49. Kg1 {[%clk 0:00:19.2]} 49... Nxg3+ {[%clk
0:00:02.6]} 50. Kh2 {[%clk 0:00:19.1]} 50... Ne2 {[%clk 0:00:03.3]} 51. Kh3
{[%clk 0:00:16]} 51... Qg1 {[%clk 0:00:04.2]} 52. Qh8# {[%clk 0:00:14.1]} 1-0

[Event "*** SCC Grand Prix: Titled Tuesday Blitz"]
[Site "Chess.com"]
[Date "2020.07.21"]
[Round "6"]
[White "VitaliyBernadskiy"]
[Black "ArjunErigaisi2003"]
[Result "0-1"]
[WhiteElo "2735"]
[BlackElo "3042"]
[TimeControl "180+1"]
[EndTime "11:07:32 PDT"]
[Termination "ArjunErigaisi2003 won on time"]

1. d4 {[%clk 0:03:00.9]} 1... Nf6 {[%clk 0:02:57.9]} 2. Nf3 {[%clk 0:03:00.5]}
2... d5 {[%clk 0:02:57.7]} 3. e3 {[%clk 0:03:00.3]} 3... Bg4 {[%clk 0:02:52.3]}
4. c4 {[%clk 0:02:58.4]} 4... c6 {[%clk 0:02:51.9]} 5. Qb3 {[%clk 0:02:58.3]}
5... Qb6 {[%clk 0:02:37]} 6. Ne5 {[%clk 0:02:57]} 6... Bh5 {[%clk 0:02:33.6]} 7.
cxd5 {[%clk 0:02:46.4]} 7... Nxd5 {[%clk 0:02:27.6]} 8. Nc3 {[%clk 0:02:26.7]}
8... e6 {[%clk 0:02:24.4]} 9. Bd3 {[%clk 0:02:18.7]} 9... Be7 {[%clk 0:02:12.1]}
10. O-O {[%clk 0:02:14.5]} 10... O-O {[%clk 0:02:11.7]} 11. e4 {[%clk
0:02:11.4]} 11... Nb4 {[%clk 0:02:06]} 12. Be3 {[%clk 0:01:59.3]} 12... Nxd3
{[%clk 0:01:51.9]} 13. Nxd3 {[%clk 0:02:00.2]} 13... Bg6 {[%clk 0:01:45.8]} 14.
Ne5 {[%clk 0:01:54.7]} 14... Rd8 {[%clk 0:01:36.9]} 15. f4 {[%clk 0:01:43.2]}
15... Qxb3 {[%clk 0:01:30.4]} 16. axb3 {[%clk 0:01:44.1]} 16... f6 {[%clk
0:01:31.3]} 17. Nxg6 {[%clk 0:01:40.2]} 17... hxg6 {[%clk 0:01:32.2]} 18. Kf2
{[%clk 0:01:28.1]} 18... Na6 {[%clk 0:01:29.6]} 19. Ke2 {[%clk 0:01:24.5]} 19...
Nb4 {[%clk 0:01:24.6]} 20. Rfc1 {[%clk 0:01:24.3]} 20... Kf7 {[%clk 0:01:23]}
21. h3 {[%clk 0:01:23.6]} 21... Rh8 {[%clk 0:01:09.3]} 22. Na2 {[%clk 0:01:23]}
22... a5 {[%clk 0:01:05.2]} 23. Nxb4 {[%clk 0:01:21.5]} 23... Bxb4 {[%clk
0:01:06.1]} 24. Bd2 {[%clk 0:01:17.8]} 24... Bxd2 {[%clk 0:01:01.5]} 25. Kxd2
{[%clk 0:01:18.7]} 25... Ra6 {[%clk 0:01:02.4]} 26. Rc5 {[%clk 0:01:16.8]} 26...
Rha8 {[%clk 0:01:02.8]} 27. Kc3 {[%clk 0:01:13.9]} 27... Ke7 {[%clk 0:01:01.7]}
28. h4 {[%clk 0:01:08.4]} 28... Kd6 {[%clk 0:00:59]} 29. g3 {[%clk 0:01:07.9]}
29... b6 {[%clk 0:00:56.5]} 30. Rc4 {[%clk 0:01:05]} 30... b5 {[%clk 0:00:49.3]}
31. Rc5 {[%clk 0:01:04.5]} 31... a4 {[%clk 0:00:49.9]} 32. h5 {[%clk 0:00:49.4]}
32... gxh5 {[%clk 0:00:36.2]} 33. Rxh5 {[%clk 0:00:47.9]} 33... axb3 {[%clk
0:00:36.5]} 34. Rxa6 {[%clk 0:00:36.5]} 34... Rxa6 {[%clk 0:00:37.4]} 35. Rh7
{[%clk 0:00:35.2]} 35... Ra4 {[%clk 0:00:31.4]} 36. e5+ {[%clk 0:00:28.3]} 36...
fxe5 {[%clk 0:00:26.4]} 37. dxe5+ {[%clk 0:00:29.2]} 37... Kc5 {[%clk
0:00:20.4]} 38. Rxg7 {[%clk 0:00:29.3]} 38... Re4 {[%clk 0:00:20.1]} 39. Kxb3
{[%clk 0:00:23.9]} 39... Re3+ {[%clk 0:00:20.6]} 40. Ka2 {[%clk 0:00:22]} 40...
Kc4 {[%clk 0:00:18.4]} 41. Re7 {[%clk 0:00:15.4]} 41... b4 {[%clk 0:00:12.2]}
42. Rxe6 {[%clk 0:00:14.2]} 42... c5 {[%clk 0:00:11.7]} 43. Rb6 {[%clk
0:00:08.5]} 43... b3+ {[%clk 0:00:09.5]} 44. Ka3 {[%clk 0:00:05.2]} 44... Re1
{[%clk 0:00:09.6]} 0-1

[Event "*** SCC Grand Prix: Titled Tuesday Blitz"]
[Site "Chess.com"]
[Date "2020.07.21"]
[Round "6"]
[White "capatl"]
[Black "Vesper2018"]
[Result "1-0"]
[WhiteElo "2421"]
[BlackElo "2579"]
[TimeControl "180+1"]
[EndTime "11:07:32 PDT"]
[Termination "capatl won on time"]

1. c4 {[%clk 0:03:00.9]} 1... e5 {[%clk 0:02:59.5]} 2. Nc3 {[%clk 0:03:00.2]}
2... d6 {[%clk 0:02:59.3]} 3. g3 {[%clk 0:02:53]} 3... Nc6 {[%clk 0:02:57.5]} 4.
Bg2 {[%clk 0:02:53.2]} 4... g6 {[%clk 0:02:57.2]} 5. e3 {[%clk 0:02:53.6]} 5...
Bg7 {[%clk 0:02:57.5]} 6. Nge2 {[%clk 0:02:54]} 6... f5 {[%clk 0:02:57.9]} 7. d4
{[%clk 0:02:50.5]} 7... e4 {[%clk 0:02:55]} 8. h4 {[%clk 0:02:45]} 8... Nf6
{[%clk 0:02:52.2]} 9. Nf4 {[%clk 0:02:44.1]} 9... O-O {[%clk 0:02:43.2]} 10. a3
{[%clk 0:02:43.2]} 10... Ng4 {[%clk 0:02:26.2]} 11. b4 {[%clk 0:02:31.7]} 11...
Ne7 {[%clk 0:02:12.8]} 12. Bb2 {[%clk 0:02:22]} 12... c6 {[%clk 0:02:10.4]} 13.
Qb3 {[%clk 0:02:19.1]} 13... a5 {[%clk 0:01:57.8]} 14. c5+ {[%clk 0:02:10.1]}
14... d5 {[%clk 0:01:57]} 15. b5 {[%clk 0:02:10.3]} 15... Bh6 {[%clk 0:01:40.1]}
16. Na4 {[%clk 0:02:00.8]} 16... Bxf4 {[%clk 0:01:34.8]} 17. gxf4 {[%clk
0:01:58.7]} 17... cxb5 {[%clk 0:01:29.1]} 18. Nb6 {[%clk 0:01:57.1]} 18... Bd7
{[%clk 0:01:29]} 19. Nxd5 {[%clk 0:01:37.3]} 19... Kg7 {[%clk 0:01:00.7]} 20.
Nb6 {[%clk 0:01:32.4]} 20... Ra6 {[%clk 0:00:36.1]} 21. d5+ {[%clk 0:01:23.3]}
21... Kh6 {[%clk 0:00:35.9]} 22. h5 {[%clk 0:01:20.6]} 22... g5 {[%clk
0:00:35.4]} 23. Qc3 {[%clk 0:01:13.5]} 23... Rg8 {[%clk 0:00:31.8]} 24. f3
{[%clk 0:01:00.1]} 24... exf3 {[%clk 0:00:27.6]} 25. Bxf3 {[%clk 0:01:01]} 25...
Rxb6 {[%clk 0:00:28]} 26. Bxg4 {[%clk 0:00:52.4]} 26... Nxd5 {[%clk 0:00:24.4]}
27. Qd4 {[%clk 0:00:48.7]} 27... Ra6 {[%clk 0:00:17.5]} 28. Qxd5 {[%clk
0:00:37.1]} 28... fxg4 {[%clk 0:00:17.1]} 29. O-O-O {[%clk 0:00:37.2]} 29... Bc6
{[%clk 0:00:08.4]} 30. Qd6+ {[%clk 0:00:33.3]} 30... Qxd6 {[%clk 0:00:06]} 31.
Rxd6+ {[%clk 0:00:34.2]} 31... Rg6 {[%clk 0:00:06.5]} 32. hxg6+ {[%clk 0:00:34]}
32... Bxh1 {[%clk 0:00:06.5]} 33. Rxa6 {[%clk 0:00:27.8]} 33... bxa6 {[%clk
0:00:06.7]} 34. g7 {[%clk 0:00:28.4]} 34... Bd5 {[%clk 0:00:06.9]} 35. f5 {[%clk
0:00:27.1]} 35... g3 {[%clk 0:00:06.3]} 36. Be5 {[%clk 0:00:26]} 36... g2 {[%clk
0:00:06.7]} 37. Bh2 {[%clk 0:00:26.4]} 37... Kxg7 {[%clk 0:00:04.5]} 38. Kd2
{[%clk 0:00:25.3]} 38... b4 {[%clk 0:00:04.3]} 39. axb4 {[%clk 0:00:21.5]} 39...
axb4 {[%clk 0:00:04.2]} 40. Kd3 {[%clk 0:00:22.4]} 40... Kf6 {[%clk 0:00:03.3]}
41. e4 {[%clk 0:00:22.6]} 41... Bc6 {[%clk 0:00:02.3]} 42. Kd4 {[%clk
0:00:22.2]} 42... a5 {[%clk 0:00:02.8]} 43. Bg1 {[%clk 0:00:17.5]} 43... g4
{[%clk 0:00:02.8]} 44. Ke3 {[%clk 0:00:15.2]} 44... b3 {[%clk 0:00:02.9]} 45.
Kf4 {[%clk 0:00:15.7]} 45... a4 {[%clk 0:00:03.2]} 46. e5+ {[%clk 0:00:15.1]}
46... Kf7 {[%clk 0:00:03.3]} 47. e6+ {[%clk 0:00:15.6]} 47... Ke7 {[%clk
0:00:03.8]} 48. Ke5 {[%clk 0:00:16.5]} 48... b2 {[%clk 0:00:02.8]} 49. f6+
{[%clk 0:00:17.3]} 49... Kf8 {[%clk 0:00:02.6]} 50. f7 {[%clk 0:00:17.6]} 50...
b1=Q {[%clk 0:00:01.9]} 51. Be3 {[%clk 0:00:17.6]} 51... Qb2+ {[%clk 0:00:01.6]}
52. Kd6 {[%clk 0:00:17.5]} 1-0

[Event "*** SCC Grand Prix: Titled Tuesday Blitz"]
[Site "Chess.com"]
[Date "2020.07.21"]
[Round "6"]
[White "Grischuk"]
[Black "giantslayer83"]
[Result "1/2-1/2"]
[WhiteElo "3029"]
[BlackElo "2743"]
[TimeControl "180+1"]
[EndTime "11:07:33 PDT"]
[Termination "Game drawn by repetition"]

1. Nf3 {[%clk 0:03:00.9]} 1... d5 {[%clk 0:02:59.7]} 2. d4 {[%clk 0:03:01.1]}
2... Nf6 {[%clk 0:02:59.5]} 3. c4 {[%clk 0:03:01.6]} 3... e6 {[%clk 0:02:59.8]}
4. Nc3 {[%clk 0:03:01.7]} 4... Bb4 {[%clk 0:02:59.5]} 5. Bg5 {[%clk 0:02:58.9]}
5... h6 {[%clk 0:02:55.4]} 6. Bd2 {[%clk 0:02:58.9]} 6... dxc4 {[%clk 0:02:49]}
7. e3 {[%clk 0:02:45.2]} 7... c5 {[%clk 0:02:41.9]} 8. Bxc4 {[%clk 0:02:31.5]}
8... cxd4 {[%clk 0:02:41.4]} 9. Qa4+ {[%clk 0:02:22.9]} 9... Nc6 {[%clk
0:02:37]} 10. Nxd4 {[%clk 0:02:23.1]} 10... Bxc3 {[%clk 0:02:36.8]} 11. Bxc3
{[%clk 0:02:22.5]} 11... Bd7 {[%clk 0:02:36.3]} 12. Qa3 {[%clk 0:02:15.8]} 12...
Qe7 {[%clk 0:02:25.6]} 13. Qxe7+ {[%clk 0:02:15.4]} 13... Nxe7 {[%clk
0:02:24.3]} 14. f3 {[%clk 0:02:11.3]} 14... Rc8 {[%clk 0:02:23.7]} 15. Be2
{[%clk 0:02:08.1]} 15... Nfd5 {[%clk 0:02:00.7]} 16. Bd2 {[%clk 0:02:08.2]}
16... Nf5 {[%clk 0:02:00.9]} 17. Nxf5 {[%clk 0:01:58.2]} 17... exf5 {[%clk
0:02:01.8]} 18. Bd3 {[%clk 0:01:53.8]} 18... O-O {[%clk 0:02:00.8]} 19. Kf2
{[%clk 0:01:48.7]} 19... Be6 {[%clk 0:01:59.8]} 20. Rhc1 {[%clk 0:01:47.6]}
20... Rcd8 {[%clk 0:01:58.3]} 21. Bf1 {[%clk 0:01:17.4]} 21... a6 {[%clk
0:01:51.3]} 22. Rc2 {[%clk 0:01:16.9]} 22... Rc8 {[%clk 0:01:25.1]} 23. Rac1
{[%clk 0:01:16.9]} 23... Rxc2 {[%clk 0:01:25]} 24. Rxc2 {[%clk 0:01:17.8]} 24...
Rc8 {[%clk 0:01:25.7]} 25. Rxc8+ {[%clk 0:01:17.6]} 25... Bxc8 {[%clk
0:01:26.6]} 26. Bd3 {[%clk 0:01:04.9]} 26... Be6 {[%clk 0:01:22.6]} 27. h3
{[%clk 0:01:03]} 27... h5 {[%clk 0:01:20.9]} 28. h4 {[%clk 0:01:03.4]} 28... Kf8
{[%clk 0:01:20.2]} 29. e4 {[%clk 0:01:01.6]} 29... fxe4 {[%clk 0:01:19.9]} 30.
Bxe4 {[%clk 0:01:02.5]} 30... Ke7 {[%clk 0:01:17.7]} 31. b3 {[%clk 0:00:54.7]}
31... Kd6 {[%clk 0:01:13.6]} 32. Ke2 {[%clk 0:00:51.4]} 32... g6 {[%clk
0:01:11.1]} 33. g3 {[%clk 0:00:43.8]} 33... Bd7 {[%clk 0:00:52.8]} 34. Be1
{[%clk 0:00:39.8]} 34... Bb5+ {[%clk 0:00:50.8]} 35. Kd2 {[%clk 0:00:40]} 35...
f5 {[%clk 0:00:48]} 36. Bb1 {[%clk 0:00:37.1]} 36... Bf1 {[%clk 0:00:45.5]} 37.
Bc2 {[%clk 0:00:33.9]} 37... b5 {[%clk 0:00:42.5]} 38. a3 {[%clk 0:00:30.5]}
38... Ke6 {[%clk 0:00:41.8]} 39. Bf2 {[%clk 0:00:30.3]} 39... Bg2 {[%clk
0:00:32.9]} 40. Ke2 {[%clk 0:00:29.7]} 40... Nc3+ {[%clk 0:00:32.3]} 41. Kd2
{[%clk 0:00:28.9]} 41... Nd5 {[%clk 0:00:30.9]} 42. Bd1 {[%clk 0:00:27.3]} 42...
Kd6 {[%clk 0:00:20.3]} 43. Bd4 {[%clk 0:00:26.8]} 43... f4 {[%clk 0:00:19.1]}
44. gxf4 {[%clk 0:00:25.9]} 44... Nxf4 {[%clk 0:00:18.8]} 45. Ke3 {[%clk
0:00:26]} 45... Nd5+ {[%clk 0:00:18.9]} 46. Kf2 {[%clk 0:00:26]} 46... Bh3
{[%clk 0:00:18.9]} 47. a4 {[%clk 0:00:24.3]} 47... Bf5 {[%clk 0:00:18.2]} 48.
Be2 {[%clk 0:00:23.3]} 48... Kc6 {[%clk 0:00:17.9]} 49. axb5+ {[%clk 0:00:16.9]}
49... axb5 {[%clk 0:00:18.8]} 50. Bd1 {[%clk 0:00:14.3]} 50... Nf4 {[%clk
0:00:18.1]} 51. Kg3 {[%clk 0:00:09.9]} 51... Nd5 {[%clk 0:00:17.9]} 52. Kf2
{[%clk 0:00:09.9]} 52... Nf4 {[%clk 0:00:17.8]} 53. Kg3 {[%clk 0:00:10.3]} 53...
Nd5 {[%clk 0:00:18]} 54. Kf2 {[%clk 0:00:10.5]} 1/2-1/2